bitfinex/quotes_BTCUSD_20241223
["timestamp","ask_amount","ask_price","bid_price","bid_amount"]
[1734983103198,0.15,93343.0,93321.0,0.00014206]
[1734983103199,0.364288,93332.0,93321.0,0.00014206]
[1734983103473,0.15,93332.0,93321.0,0.00014206]
[1734983103686,0.15,93332.0,93324.0,0.214306]
[1734983103889,0.15,93332.0,93321.0,0.00014206]
[1734983104085,0.15,93332.0,93324.0,0.214304]
[1734983104400,0.214276,93338.0,93324.0,0.214304]
[1734983104401,0.15,93335.0,93324.0,0.214304]
[1734983104851,0.214284,93334.0,93324.0,0.214304]
[1734983104994,0.15,93333.0,93331.0,0.0030855]
[1734983105197,0.15,93333.0,93331.0,0.0020855]
[1734983105395,0.15,93333.0,93331.0,0.0030855]
[1734983105641,0.364288,93332.0,93331.0,0.0030855]
[1734983105817,0.15,93332.0,93331.0,0.0020855]
[1734983106040,0.15,93332.0,93331.0,0.0040855]
[1734983106239,0.25398632,93332.0,93331.0,0.0020855]
[1734983106651,0.32938632,93332.0,93331.0,0.0020855]
[1734983107467,0.33138632,93332.0,93331.0,0.0020855]
[1734983107674,0.33138632,93332.0,93331.0,8.55e-05]
[1734983107984,0.33338632,93332.0,93331.0,8.55e-05]
[1734983108183,0.43300855,93332.0,93331.0,8.55e-05]
[1734983108387,0.48100855,93332.0,93331.0,8.55e-05]
[1734983108604,0.48500855,93332.0,93331.0,8.55e-05]
[1734983112179,0.38738632,93332.0,93331.0,8.55e-05]
[1734983115849,1.22555432,93332.0,93331.0,8.55e-05]
[1734983116018,1.52642332,93332.0,93331.0,8.55e-05]
[1734983116231,1.21413132,93332.0,93331.0,8.55e-05]
[1734983116773,0.314311,93322.0,93321.0,0.00014206]
[1734983116977,0.93120132,93322.0,93321.0,0.00014206]
[1734983117191,0.93120132,93322.0,93321.0,6e-08]
[1734983117192,0.91289532,93322.0,93321.0,6e-08]
[1734983117367,0.81379732,93322.0,93321.0,6e-08]
[1734983117946,0.81379732,93322.0,93283.0,8.55e-05]
[1734983117947,0.364396,93285.0,93283.0,8.55e-05]
[1734983118146,0.364396,93285.0,93284.0,0.00061707]
[1734983118376,0.4084856,93285.0,93284.0,0.00061707]
[1734983119190,0.364396,93285.0,93284.0,0.00061707]
[1734983119412,0.364396,93285.0,93284.0,0.00261707]
[1734983119620,0.46838232,93285.0,93284.0,0.00261707]
[1734983119856,0.49138232,93285.0,93284.0,0.00261707]
[1734983120690,0.49138232,93285.0,93284.0,0.00361707]
[1734983120871,0.57110679,93285.0,93284.0,0.00161707]
[1734983121130,0.67110679,93285.0,93284.0,0.00261707]
[1734983121332,0.36269999,93285.0,93284.0,0.00261707]
[1734983121556,0.31681316,93285.0,93284.0,0.00161707]
[1734983121758,0.23708869,93285.0,93284.0,0.00161707]
[1734983121967,0.47291714,93285.0,93284.0,0.00161707]
[1734983122174,0.47181477,93285.0,93284.0,0.00061707]
[1734983122382,0.48081477,93285.0,93284.0,0.00161707]
[1734983122565,0.48481477,93285.0,93284.0,0.00161707]
[1734983122903,0.68382395,93285.0,93284.0,0.00161707]
[1734983123104,0.76692395,93285.0,93284.0,0.00161707]
[1734983123535,0.91692395,93285.0,93284.0,0.00161707]
[1734983123743,0.91692395,93285.0,93284.0,0.00061707]
[1734983128783,0.1,93277.0,93252.0,4.407e-05]
[1734983128994,0.214459,93258.0,93257.0,0.00015935]
[1734983130179,0.59144532,93258.0,93257.0,0.00015935]
[1734983130589,0.69144532,93258.0,93257.0,0.00415935]
[1734983130835,0.46844532,93258.0,93257.0,0.00415935]
[1734983131422,0.46844532,93258.0,93257.0,0.00115935]
[1734983131897,0.47644532,93258.0,93257.0,0.00115935]
[1734983132125,0.47644532,93258.0,93257.0,0.00015935]
[1734983132126,0.372459,93258.0,93257.0,0.00015935]
[1734983132327,0.379459,93258.0,93257.0,0.00015935]
[1734983132717,0.376459,93258.0,93257.0,0.00015935]
[1734983132923,0.012,93258.0,93257.0,0.00015935]
[1734983133124,0.012,93258.0,93252.0,4.407e-05]
[1734983133125,0.013,93258.0,93252.0,4.407e-05]
[1734983133299,0.013,93258.0,93257.0,8.55e-05]
[1734983133508,0.15,93265.0,93257.0,8.55e-05]
[1734983133846,0.003,93258.0,93257.0,8.55e-05]
[1734983134050,0.001,93258.0,93257.0,8.55e-05]
[1734983134669,0.001,93258.0,93257.0,0.0773855]
[1734983135094,0.006,93265.0,93264.0,0.214445]
[1734983135232,0.214404,93282.0,93269.0,0.214432]
[1734983135432,0.0757,93294.0,93269.0,0.214432]
[1734983135433,0.0757,93294.0,93273.0,0.214422]
[1734983135652,0.10398632,93293.0,93273.0,0.214422]
[1734983135851,0.10398632,93293.0,93257.0,0.0773855]
[1734983135852,0.214391,93288.0,93277.0,0.214414]
[1734983136503,0.214391,93288.0,93274.0,0.262921]
[1734983136844,0.10398632,93293.0,93278.0,0.21441]
[1734983137051,0.31936532,93293.0,93278.0,0.21441]
[1734983137258,0.001,93293.0,93275.0,0.0821]
[1734983137488,0.001,93293.0,93279.0,0.10505831]
[1734983137692,0.001,93293.0,93291.0,0.214381]
[1734983138260,0.214345,93308.0,93279.0,0.10398632]
[1734983138467,0.042868,93307.0,93280.0,0.00107189]
[1734983138665,0.214348,93306.0,93291.0,0.214382]
[1734983138836,0.19339925,93307.0,93279.0,0.10398632]
[1734983139046,0.214348,93306.0,93295.0,0.214372]
[1734983139245,0.15,93305.0,93295.0,0.214372]
[1734983139447,0.15,93305.0,93279.0,0.10398632]
[1734983139705,0.214339,93311.0,93295.0,0.214372]
[1734983140022,0.0001592,93308.0,93300.0,0.21436]
[1734983140653,0.0001592,93308.0,93299.0,0.0788]
[1734983140856,0.0001592,93308.0,93305.0,0.214348]
[1734983141301,0.0001592,93308.0,93307.0,0.214346]
[1734983141505,0.0001592,93308.0,93307.0,0.31833232]
[1734983141936,0.214263,93343.0,93307.0,0.10398632]
[1734983142142,0.15326219,93402.0,93307.0,0.10398632]
[1734983142143,0.10398632,93341.0,93319.0,0.214316]
[1734983142298,0.214291,93332.0,93315.0,0.214326]
[1734983142504,0.214284,93335.0,93319.0,0.214316]
[1734983143110,0.364274,93339.0,93315.0,0.214326]
[1734983143299,0.214287,93333.0,93311.0,0.214336]
[1734983143499,0.214287,93333.0,93319.0,0.214317]
[1734983143997,0.15,93337.0,93320.0,0.214316]
[1734983144207,0.15,93335.0,93320.0,0.214316]
[1734983144541,0.15,93333.0,93320.0,0.214316]
[1734983145402,0.214288,93332.0,93319.0,0.214317]
[1734983145760,0.15,93329.0,93315.0,0.214325]
[1734983145965,0.25398632,93329.0,93311.0,0.214335]
[1734983146172,0.2306,93327.0,93290.0,0.0758]
[1734983146363,0.2306,93327.0,93296.0,0.214371]
[1734983146364,0.214336,93312.0,93296.0,0.214371]
[1734983146564,0.214339,93310.0,93292.0,0.21438]
[1734983146772,0.0214336,93311.0,93290.0,0.09510651]
[1734983146972,0.214353,93304.0,93291.0,0.214382]
[1734983147591,0.214353,93304.0,93291.0,0.21491325]
[1734983147800,0.214353,93304.0,93292.0,0.003]
[1734983147969,0.214353,93304.0,93291.0,0.21491325]
[1734983148395,0.214353,93304.0,93291.0,0.21691325]
[1734983148555,0.214353,93304.0,93291.0,0.21791325]
[1734983148755,0.15,93305.0,93291.0,0.43229525]
[1734983148981,0.001,93310.0,93291.0,0.00353125]
[1734983149183,0.001,93310.0,93304.0,0.214353]
[1734983149617,0.001,93310.0,93300.0,0.21436]
[1734983149822,0.001,93310.0,93304.0,0.214352]
[1734983150033,0.214325,93317.0,93304.0,0.214352]
[1734983151424,0.217325,93317.0,93304.0,0.214352]
[1734983151625,0.004,93317.0,93308.0,0.214343]
[1734983151851,0.225324,93317.0,93304.0,0.214352]
[1734983152053,0.438648,93317.0,93304.0,0.214352]
[1734983152453,0.214327,93315.0,93304.0,0.214352]
[1734983152913,0.214327,93315.0,93300.0,0.21436]
[1734983153543,0.214327,93315.0,93304.0,0.001]
[1734983153752,0.214327,93315.0,93300.0,0.21436]
[1734983153937,0.0438648,93316.0,93304.0,0.001]
[1734983154147,0.15,93313.0,93304.0,0.001]
[1734983154304,0.36435,93305.0,93304.0,0.001]
[1734983154528,0.15,93305.0,93300.0,0.001]
[1734983154726,0.15,93305.0,93291.0,0.00053125]
[1734983154727,0.214355,93303.0,93291.0,0.21491325]
[1734983155084,0.2507905,93303.0,93291.0,0.21491325]
[1734983156930,0.214355,93303.0,93291.0,0.21491325]
[1734983157126,0.153,93305.0,93295.0,0.214372]
[1734983157328,0.003,93305.0,93303.0,0.214353]
[1734983157533,0.003,93305.0,93300.0,0.21436]
[1734983157968,0.15,93313.0,93300.0,0.21436]
[1734983158174,0.15,93313.0,93296.0,0.214371]
[1734983158175,0.48655118,93312.0,93296.0,0.214371]
[1734983158388,0.15,93318.0,93296.0,0.214371]
[1734983158596,0.214337,93311.0,93296.0,0.214371]
[1734983159422,0.0001708,93319.0,93300.0,0.21436]
[1734983159648,0.214332,93313.0,93300.0,0.21436]
[1734983160198,0.214332,93313.0,93303.0,0.002]
[1734983160409,0.001,93305.0,93303.0,0.002]
[1734983160615,0.214332,93313.0,93300.0,0.21436]
[1734983160833,0.0001708,93319.0,93291.0,0.00061665]
[1734983160834,0.10398632,93312.0,93291.0,0.00061665]
[1734983161039,0.214363,93300.0,93291.0,0.00061665]
[1734983161240,0.214356,93303.0,93291.0,0.00061665]
[1734983161860,0.214356,93303.0,93292.0,0.21438]
[1734983162076,0.0578709,93303.0,93291.0,0.00161665]
[1734983162285,0.214357,93302.0,93291.0,0.00161665]
[1734983162639,0.214351,93305.0,93292.0,0.21438]
[1734983162880,0.214351,93305.0,93291.0,0.00161665]
[1734983163072,0.428702,93305.0,93292.0,0.21438]
[1734983163214,0.214351,93305.0,93291.0,0.00161665]
[1734983163414,0.214353,93304.0,93291.0,0.00061665]
[1734983164078,0.003,93305.0,93291.0,0.00061665]
[1734983164280,0.214355,93303.0,93291.0,0.00061665]
[1734983164493,0.003,93305.0,93291.0,0.00061665]
[1734983164712,0.15,93311.0,93296.0,0.21437]
[1734983164947,0.15,93311.0,93302.0,0.214357]
[1734983165125,0.15,93311.0,93302.0,0.2357927]
[1734983166081,0.214327,93316.0,93302.0,0.2357927]
[1734983166564,0.10398632,93315.0,93294.0,0.214375]
[1734983166741,0.002,93303.0,93294.0,0.214375]
[1734983166945,0.002,93303.0,93300.0,0.214361]
[1734983167352,0.002,93303.0,93300.0,0.428723]
[1734983167733,0.002,93303.0,93302.0,0.001]
[1734983167929,0.15,93315.0,93296.0,0.21437]
[1734983168176,0.214327,93316.0,93292.0,0.21438]
[1734983168177,0.21426,93345.0,93304.0,0.0471]
[1734983168382,0.21426,93345.0,93318.0,0.21432]
[1734983168592,0.214256,93346.0,93318.0,0.31830632]
[1734983169015,0.0779,93354.0,93318.0,0.31830632]
[1734983169016,0.0779,93354.0,93318.0,0.39910632]
[1734983169221,0.000171,93362.0,93318.0,0.56920632]
[1734983169418,8e-07,93319.0,93318.0,0.65755935]
[1734983171065,0.0020008,93319.0,93318.0,0.65755935]
[1734983171656,0.0020008,93319.0,93318.0,0.75755935]
[1734983171854,0.000171,93362.0,93337.0,0.292077]
[1734983172060,0.000171,93362.0,93337.0,0.47167102]
[1734983173072,0.00031921,93338.0,93337.0,0.47167102]
[1734983173309,0.00031921,93338.0,93337.0,0.47767102]
[1734983173723,0.00031921,93338.0,93337.0,0.47167102]
[1734983174106,0.00231921,93338.0,93337.0,0.48267102]
[1734983174273,0.00231921,93338.0,93337.0,0.47867102]
[1734983174477,0.09319474,93374.0,93337.0,0.25739402]
[1734983174681,0.00014798,93374.0,93338.0,0.34722561]
[1734983174880,0.21434198,93374.0,93361.0,0.214222]
[1734983175278,0.00014798,93374.0,93365.0,0.214212]
[1734983175506,0.00014798,93374.0,93361.0,0.214222]
[1734983175709,0.00014798,93374.0,93345.0,0.15]
[1734983175923,0.00014798,93374.0,93346.0,0.13994214]
[1734983176106,0.00014798,93374.0,93362.0,0.214217]
[1734983176304,0.00414798,93374.0,93362.0,0.428436]
[1734983176581,0.00414798,93374.0,93366.0,0.214209]
[1734983176974,0.00014798,93374.0,93366.0,0.214209]
[1734983177515,0.00014798,93374.0,93372.0,0.214195]
[1734983177920,0.00014798,93374.0,93372.0,0.31818132]
[1734983178217,0.00014798,93374.0,93367.0,0.214208]
[1734983178218,0.00014798,93374.0,93373.0,0.10505718]
[1734983178791,0.00014798,93374.0,93373.0,0.10398632]
[1734983178991,0.00014798,93374.0,93373.0,0.10505714]
[1734983179389,0.00014798,93374.0,93373.0,0.10398632]
[1734983179595,0.00014798,93374.0,93373.0,0.10505707]
[1734983179805,0.000171,93398.0,93382.0,0.214174]
[1734983180020,0.000171,93398.0,93387.0,0.1]
[1734983180199,0.000171,93398.0,93397.0,0.214139]
[1734983180493,0.000171,93398.0,93397.0,0.31812532]
[1734983180927,0.000171,93398.0,93395.0,0.214142]
[1734983181138,0.000171,93398.0,93395.0,0.428285]
[1734983181550,0.001171,93398.0,93395.0,0.214142]
[1734983182563,0.001171,93398.0,93387.0,0.004]
[1734983182564,0.001171,93398.0,93388.0,0.21416]
[1734983182782,0.001171,93398.0,93389.0,0.214157]
[1734983182989,0.001171,93398.0,93387.0,0.004]
[1734983183188,0.001171,93398.0,93374.0,0.1165498]
[1734983183189,0.001171,93398.0,93374.0,0.09510651]
[1734983183391,0.001171,93398.0,93372.0,0.0001708]
[1734983183392,0.001171,93398.0,93373.0,0.214194]
[1734983183602,0.10515732,93398.0,93372.0,0.09527731]
[1734983183774,0.10615732,93398.0,93397.0,0.004]
[1734983183981,0.214139,93397.0,93395.0,0.002]
[1734983184187,0.214141,93396.0,93395.0,0.002]
[1734983184509,0.21416,93388.0,93377.0,0.214183]
[1734983184683,0.21416,93388.0,93378.0,0.04285458]
[1734983185837,0.21416,93388.0,93377.0,0.214183]
[1734983186607,0.21416,93388.0,93374.0,0.214192]
[1734983187052,0.21417,93384.0,93372.0,0.2143658]
[1734983187252,0.214162,93387.0,93372.0,0.2143658]
[1734983187936,0.214162,93387.0,93377.0,0.002]
[1734983188149,0.000171,93398.0,93389.0,0.214157]
[1734983188353,0.000171,93398.0,93388.0,0.214159]
[1734983188562,0.000171,93398.0,93378.0,0.1256229]
[1734983188742,0.000171,93398.0,93387.0,0.21416]
[1734983190160,0.214144,93395.0,93372.0,0.0001708]
[1734983190372,0.214161,93388.0,93374.0,0.214191]
[1734983190601,0.214161,93388.0,93378.0,0.214181]
[1734983190777,0.214146,93394.0,93387.0,0.001]
[1734983190960,0.15,93396.0,93387.0,0.001]
[1734983191158,0.000171,93398.0,93395.0,0.214142]
[1734983191340,0.000171,93398.0,93388.0,0.214159]
[1734983191770,0.000171,93398.0,93392.0,0.214149]
[1734983192902,0.214139,93397.0,93386.0,0.214163]
[1734983193107,0.214153,93391.0,93376.0,0.214186]
[1734983193478,0.214155,93390.0,93376.0,0.214186]
[1734983193682,0.21416,93388.0,93376.0,0.214186]
[1734983193885,0.21416,93388.0,93372.0,0.0001708]
[1734983194095,0.21416,93388.0,93372.0,0.10415712]
[1734983194258,0.21416,93388.0,93376.0,0.003]
[1734983194457,0.215154,93391.0,93377.0,0.214185]
[1734983194708,0.214163,93387.0,93374.0,0.214192]
[1734983195318,0.214149,93393.0,93378.0,0.214181]
[1734983195576,0.000171,93398.0,93387.0,0.214161]
[1734983195785,0.000171,93398.0,93392.0,0.214151]
[1734983196195,0.000171,93398.0,93393.0,0.214148]
[1734983196728,0.000171,93398.0,93394.0,0.53334901]
[1734983196934,0.000171,93398.0,93394.0,0.53227832]
[1734983197179,0.002171,93398.0,93394.0,0.53227832]
[1734983197737,0.005171,93398.0,93394.0,0.53227832]
[1734983197914,0.005171,93398.0,93396.0,0.214141]
[1734983198215,0.004171,93398.0,93396.0,0.31812732]
[1734983198389,0.004171,93398.0,93397.0,0.10505693]
[1734983198992,0.000171,93398.0,93397.0,0.10505693]
[1734983199195,0.000171,93398.0,93397.0,0.18552871]
[1734983199196,0.001171,93398.0,93397.0,0.18552871]
[1734983199403,0.001171,93398.0,93397.0,0.18552854]
[1734983199760,0.002171,93398.0,93397.0,0.18952854]
[1734983199957,0.00206489,93398.0,93397.0,0.10905676]
[1734983200213,0.00206489,93398.0,93397.0,0.004]
[1734983200214,0.00181325,93398.0,93397.0,0.004]
[1734983200659,0.0001712,93402.0,93401.0,0.21413]
[1734983200869,0.0001712,93402.0,93401.0,0.31811632]
[1734983201276,0.0001712,93402.0,93401.0,0.39331632]
[1734983201495,0.0001712,93402.0,93401.0,0.48587645]
[1734983202289,0.0001712,93402.0,93401.0,0.65587645]
[1734983202750,0.0001712,93402.0,93401.0,0.55587645]
[1734983202954,0.0011712,93402.0,93401.0,0.66087645]
[1734983203191,0.0011712,93402.0,93401.0,0.66487645]
[1734983203599,0.0011712,93402.0,93401.0,0.66087645]
[1734983203809,0.0021712,93402.0,93401.0,0.66687645]
[1734983204231,0.00045386,93402.0,93401.0,0.66087645]
[1734983204426,8.54e-05,93404.0,93403.0,0.1]
[1734983204577,8.54e-05,93404.0,93403.0,0.3320429]
[1734983204578,0.00061636,93404.0,93403.0,0.3320429]
[1734983204773,0.00061636,93404.0,93403.0,0.23097264]
[1734983204974,0.00061636,93404.0,93403.0,0.10398632]
[1734983205186,0.000171,93413.0,93410.0,0.214109]
[1734983205391,0.00033022,93411.0,93410.0,0.31809532]
[1734983206533,0.00133022,93411.0,93410.0,0.32709532]
[1734983206974,0.00133022,93411.0,93410.0,0.33209532]
[1734983207177,0.00133022,93411.0,93410.0,0.40812925]
[1734983209065,0.00133022,93411.0,93410.0,0.40312925]
[1734983209305,0.00033022,93411.0,93410.0,0.39712925]
[1734983209553,0.00033022,93411.0,93410.0,0.32109532]
[1734983209758,0.00133022,93411.0,93410.0,0.32409532]
[1734983209974,0.00133022,93411.0,93410.0,0.31809532]
[1734983210186,0.00233022,93411.0,93410.0,0.33209532]
[1734983210846,0.00233022,93411.0,93410.0,0.42812925]
[1734983211518,0.00233022,93411.0,93410.0,0.33209532]
[1734983211737,0.00233022,93411.0,93410.0,0.35389789]
[1734983211959,0.214041,93440.0,93427.0,0.214069]
[1734983212370,0.214051,93436.0,93410.0,0.13978889]
[1734983212602,0.214231,93432.0,93420.0,0.214085]
[1734983212815,0.214231,93432.0,93410.0,0.014]
[1734983212816,0.000171,93432.0,93410.0,0.014]
[1734983213031,0.214102,93414.0,93408.0,0.09510651]
[1734983213214,0.428212,93412.0,93408.0,0.09510651]
[1734983213626,0.428212,93412.0,93406.0,0.14246816]
[1734983213627,0.0792,93413.0,93401.0,0.09510651]
[1734983213799,0.214107,93411.0,93401.0,0.09526573]
[1734983214008,0.214118,93407.0,93401.0,0.09526573]
[1734983214362,0.214107,93411.0,93401.0,0.09526573]
[1734983214564,0.0792,93413.0,93406.0,0.214118]
[1734983214772,0.15,93419.0,93410.0,0.215108]
[1734983215164,0.15,93419.0,93410.0,0.214108]
[1734983215515,0.0827,93421.0,93410.0,0.214108]
[1734983215948,0.15,93419.0,93410.0,0.214108]
[1734983216248,0.0810865,93418.0,93403.0,0.09510651]
[1734983216456,0.0810865,93418.0,93410.0,0.001]
[1734983216457,0.319107,93411.0,93410.0,0.001]
[1734983216659,0.319107,93411.0,93401.0,0.00015922]
[1734983216660,0.023,93402.0,93401.0,2.2e-07]
[1734983216871,0.553027,93401.0,93400.0,0.02275538]
[1734983217073,0.214169,93384.0,93383.0,0.09476686]
[1734983217272,0.58257222,93384.0,93383.0,0.09476686]
[1734983217628,0.65867222,93384.0,93383.0,0.09476686]
[1734983217827,0.70457222,93384.0,93383.0,0.09476686]
[1734983218040,0.70457222,93384.0,93383.0,0.02076686]
[1734983218234,0.2,93381.0,93380.0,0.0001706]
[1734983218461,0.47698632,93381.0,93380.0,0.0001706]
[1734983218691,0.25398632,93381.0,93380.0,0.0001706]
[1734983219536,0.26298632,93381.0,93380.0,0.0011706]
[1734983220155,0.25898632,93381.0,93380.0,0.0011706]
[1734983220567,0.28198632,93381.0,93380.0,6e-07]
[1734983220771,0.387194,93373.0,93372.0,4e-07]
[1734983220970,0.023,93368.0,93313.0,0.293331]
[1734983221191,0.1,93359.0,93320.0,0.00053096]
[1734983221391,0.214302,93327.0,93320.0,0.00053096]
[1734983221594,0.15,93344.0,93320.0,0.00053096]
[1734983221728,0.15,93342.0,93320.0,0.00053096]
[1734983221943,0.214313,93322.0,93320.0,0.00053096]
[1734983222981,0.214306,93325.0,93320.0,0.00053096]
[1734983223195,0.47325132,93342.0,93320.0,0.00053096]
[1734983223196,0.005,93342.0,93321.0,0.10398632]
[1734983223346,0.21427,93340.0,93321.0,0.10505774]
[1734983223549,0.005,93342.0,93321.0,0.10398632]
[1734983223966,0.15,93341.0,93320.0,0.00453096]
[1734983224182,0.214289,93332.0,93321.0,0.10398632]
[1734983224461,0.214281,93336.0,93322.0,0.214311]
[1734983224666,0.214281,93336.0,93320.0,0.00553096]
[1734983224667,0.214281,93336.0,93323.0,0.31829532]
[1734983224882,0.15,93339.0,93324.0,0.46099563]
[1734983225088,0.15,93339.0,93325.0,0.10505769]
[1734983225310,0.15,93339.0,93326.0,0.214302]
[1734983225496,0.214209,93367.0,93327.0,0.10398632]
[1734983225707,0.002,93336.0,93329.0,0.214295]
[1734983225991,0.002,93336.0,93331.0,0.214291]
[1734983226203,0.002,93336.0,93332.0,0.10398632]
[1734983226600,0.003,93339.0,93332.0,0.10398632]
[1734983227999,0.214263,93344.0,93332.0,0.10398632]
[1734983228208,0.214263,93344.0,93329.0,0.214295]
[1734983228508,0.214263,93344.0,93332.0,0.001]
[1734983228709,0.214263,93344.0,93321.0,0.252873]
[1734983228710,0.15,93362.0,93321.0,0.038561]
[1734983228971,0.2143,93327.0,93321.0,0.038561]
[1734983229127,0.001,93339.0,93321.0,0.038561]
[1734983229327,0.15,93348.0,93321.0,0.038561]
[1734983229526,0.214286,93333.0,93332.0,0.0011708]
[1734983230354,0.364286,93333.0,93332.0,0.0011708]
[1734983230923,0.364286,93333.0,93332.0,0.0001708]
[1734983231683,0.365286,93333.0,93332.0,0.0001708]
[1734983232023,0.366286,93333.0,93332.0,0.0001708]
[1734983233877,0.54975652,93333.0,93332.0,0.0001708]
[1734983234291,0.77275652,93333.0,93332.0,0.0001708]
[1734983234493,0.77275652,93333.0,93332.0,8e-07]
[1734983234879,0.77175652,93333.0,93332.0,8e-07]
[1734983235092,0.77075652,93333.0,93332.0,8e-07]
[1734983235314,0.77975652,93333.0,93321.0,0.03824232]
[1734983235536,0.77975652,93333.0,93291.0,8.54e-05]
[1734983235537,0.21438,93292.0,93291.0,8.54e-05]
[1734983235746,0.46836632,93292.0,93291.0,0.00061665]
[1734983237620,0.57456632,93292.0,93291.0,0.00061665]
[1734983238039,0.58156632,93292.0,93291.0,0.00061665]
[1734983238467,0.58556632,93292.0,93291.0,0.00061665]
[1734983238671,0.60672401,93292.0,93291.0,0.00061665]
[1734983239145,0.47723025,93292.0,93291.0,0.00061665]
[1734983239389,0.48223025,93292.0,93291.0,0.00161665]
[1734983239785,0.50523025,93292.0,93291.0,0.00161665]
[1734983240012,0.50023025,93292.0,93291.0,0.00061665]
[1734983240844,0.49123025,93292.0,93291.0,0.00061665]
[1734983241087,0.46823025,93292.0,93291.0,0.00061665]
[1734983241290,0.47323025,93292.0,93291.0,0.00061665]
[1734983241495,0.21424393,93292.0,93291.0,0.00061665]
[1734983241914,0.22224393,93292.0,93291.0,0.00061665]
[1734983242169,0.21724393,93292.0,93291.0,0.00061665]
[1734983242795,0.21424393,93292.0,93291.0,0.00061665]
[1734983242964,0.02124195,93302.0,93291.0,0.00061665]
[1734983242965,0.15,93294.0,93291.0,0.00061665]
[1734983243205,0.15,93292.0,93291.0,0.00061665]
[1734983243416,0.153,93292.0,93291.0,0.00061665]
[1734983243593,0.152,93292.0,93291.0,0.00061665]
[1734983244061,0.25898632,93292.0,93291.0,0.00061665]
[1734983244268,0.38163632,93292.0,93291.0,0.00061665]
[1734983244475,0.79443181,93292.0,93291.0,0.00061665]
[1734983244660,0.51090481,93292.0,93291.0,0.00061665]
[1734983244890,0.72516581,93292.0,93291.0,0.00061665]
[1734983245129,0.73016581,93292.0,93291.0,0.00061665]
[1734983245309,0.72816581,93292.0,93291.0,0.00061665]
[1734983245462,0.72516581,93292.0,93291.0,0.00061665]
[1734983246026,0.73116581,93292.0,93291.0,0.00161665]
[1734983246432,0.83116581,93292.0,93291.0,0.00161665]
[1734983246642,0.84016581,93292.0,93291.0,0.00161665]
[1734983247015,0.83116581,93292.0,93291.0,0.00161665]
[1734983247247,0.84016581,93292.0,93291.0,0.00161665]
[1734983247419,0.80479681,93292.0,93291.0,0.00161665]
[1734983247618,0.79879681,93292.0,93291.0,0.00061665]
[1734983248025,0.80379681,93292.0,93291.0,0.00161665]
[1734983248881,0.80379681,93292.0,93291.0,0.00061665]
[1734983252661,0.80379681,93292.0,93252.0,4.407e-05]
[1734983252662,0.373,93287.0,93286.0,4.5e-07]
[1734983252860,0.53960494,93287.0,93286.0,0.00014843]
[1734983253271,0.75399694,93287.0,93286.0,0.00014843]
[1734983253474,2.37763594,93287.0,93286.0,4.3e-07]
[1734983253685,0.58741,93279.0,93278.0,2.3e-07]
[1734983253852,0.74926972,93279.0,93278.0,0.00014824]
[1734983254063,0.74926972,93279.0,93235.0,0.214511]
[1734983254064,0.214489,93245.0,93242.0,0.04499071]
[1734983254283,0.214489,93245.0,93242.0,0.04514991]
[1734983254667,0.15,93264.0,93242.0,0.04514991]
[1734983254912,0.214482,93248.0,93242.0,0.04514991]
[1734983255471,0.214477,93250.0,93242.0,0.04514991]
[1734983255886,0.214477,93250.0,93242.0,0.04614991]
[1734983256571,0.001,93245.0,93242.0,0.04614991]
[1734983256779,0.214477,93250.0,93242.0,0.04614991]
[1734983257156,0.44227909,93250.0,93242.0,0.04614991]
[1734983257369,0.44227909,93250.0,93242.0,0.04514991]
[1734983257595,0.001,93245.0,93242.0,0.04614991]
[1734983258007,0.214479,93249.0,93242.0,0.04514991]
[1734983258174,0.15,93244.0,93242.0,0.0001592]
[1734983258563,0.15,93243.0,93242.0,0.0011592]
[1734983258732,0.214477,93250.0,93242.0,0.0011592]
[1734983258938,0.15,93249.0,93242.0,0.0001592]
[1734983259263,0.214478,93250.0,93242.0,0.0011592]
[1734983259449,0.0214478,93249.0,93242.0,0.0011592]
[1734983259646,0.0364434,93263.0,93242.0,0.0011592]
[1734983259647,0.214481,93248.0,93242.0,0.0011592]
[1734983259862,0.001,93245.0,93242.0,0.0011592]
[1734983260181,0.214491,93244.0,93242.0,0.0009592]
[1734983260298,0.214491,93244.0,93235.0,0.214511]
[1734983260502,0.214491,93244.0,93240.0,0.00024502]
[1734983260904,0.2575882,93244.0,93240.0,0.00024502]
[1734983261510,0.2575882,93244.0,93240.0,0.00124502]
[1734983262929,0.214478,93250.0,93240.0,0.00124502]
[1734983263138,0.15,93255.0,93223.0,0.00567401]
[1734983263341,0.00107253,93254.0,93242.0,0.214495]
[1734983263938,0.25890206,93255.0,93242.0,0.214495]
[1734983264194,0.214465,93255.0,93242.0,0.214495]
[1734983264411,0.214465,93255.0,93246.0,0.214486]
[1734983264412,0.216465,93255.0,93246.0,0.214486]
[1734983264825,0.001,93254.0,93246.0,0.214486]
[1734983265036,0.001,93254.0,93233.0,0.214514]
[1734983265261,0.002,93255.0,93233.0,0.214514]
[1734983265663,0.003,93255.0,93233.0,0.214514]
[1734983266068,0.001,93255.0,93233.0,0.2145994]
[1734983266286,0.001,93255.0,93234.0,0.0167121]
[1734983266490,0.001,93254.0,93241.0,0.214496]
[1734983266696,0.001,93255.0,93234.0,0.10398632]
[1734983266890,0.003,93255.0,93234.0,0.10398632]
[1734983267162,0.002,93255.0,93234.0,0.10398632]
[1734983267379,0.21447,93253.0,93241.0,0.214497]
[1734983267830,0.2724635,93253.0,93241.0,0.214497]
[1734983268020,0.214479,93250.0,93241.0,0.214497]
[1734983268879,0.214459,93258.0,93245.0,0.214486]
[1734983269099,0.15,93263.0,93246.0,0.214486]
[1734983269327,0.15,93261.0,93250.0,0.214476]
[1734983269717,0.15,93261.0,93250.0,0.261176]
[1734983269984,0.15,93261.0,93253.0,0.214468]
[1734983270629,0.001,93261.0,93253.0,0.214468]
[1734983271048,0.152,93261.0,93253.0,0.214468]
[1734983271294,0.06024455,93260.0,93250.0,0.0467]
[1734983271511,0.15,93234.0,93218.0,0.0487]
[1734983272594,0.214513,93235.0,93218.0,0.0487]
[1734983272800,0.214491,93244.0,93221.0,0.214543]
[1734983273003,0.0364491,93244.0,93225.0,0.214533]